fUST/lending_fUST_20250212
["ID","MTS","AMOUNT","RATE_DAILY","PERIOD"]
[352815533,1739343044886,-638.67465305,0.0001419,2]
[352815534,1739343044894,-500.0,0.0001419,2]
[352815535,1739343044903,-500.0,0.0001419,2]
[352815536,1739343044913,-4228.31,0.0001419,2]
[352815537,1739343044922,-509.91,0.0001419,2]
[352815538,1739343044931,-500.0,0.0001419,2]
[352815539,1739343044941,-500.0,0.0001419,2]
[352815540,1739343044950,-500.0,0.0001419,2]
[352815541,1739343044960,-500.0,0.00014191,2]
[352815542,1739343044969,-500.0,0.00014191,2]
[352815543,1739343044983,-500.0,0.00014212,2]
[352815544,1739343044994,-500.0,0.00014222,2]
[352815545,1739343045004,-500.85551591,0.00014222,2]
[352815546,1739343045013,-269.85430873,0.00014222,2]
[352815547,1739343045023,-160.28392707,0.00014231,2]
[352815548,1739343045032,-500.0,0.00014231,2]
[352815549,1739343045041,-267.7570678,0.00014231,2]
[352815550,1739343045051,-349.11851743,0.00014231,2]
[352815551,1739343045060,-500.0,0.00014231,2]
[352815552,1739343045069,-500.0,0.00014231,2]
[352815553,1739343045078,-885.35,0.00014325,2]
[352815554,1739343045087,-500.0,0.00014325,2]
[352815555,1739343045096,-844.99,0.00014325,2]
[352815556,1739343045105,-500.0,0.00014326,2]
[352815557,1739343045115,-500.0,0.00014326,2]
[352815558,1739343045123,-500.0,0.00014326,2]
[352815559,1739343045132,-500.0,0.00014326,2]
[352815560,1739343045142,-3212.95,0.00014326,2]
[352815561,1739343045151,-1024.58,0.00014326,2]
[352815562,1739343045162,-1004.71,0.00014326,2]
[352815563,1739343045175,-999.41,0.00014326,2]
[352815564,1739343045184,-500.0,0.00014326,2]
[352815565,1739343045194,-500.0,0.00014326,2]
[352815566,1739343045203,-9268.96,0.00014326,2]
[352815567,1739343045211,-500.0,0.00014326,2]
[352815568,1739343045221,-509.52,0.00014326,2]
[352815569,1739343045230,-500.0,0.00014326,2]
[352815570,1739343045239,-500.0,0.00014326,2]
[352815571,1739343045248,-500.0,0.00014326,2]
[352815572,1739343045258,-743.66,0.00014326,2]
[352815573,1739343045267,-2835.54,0.00014326,2]
[352815574,1739343045276,-616.77,0.00014326,2]
[352815575,1739343045285,-500.0,0.00014326,2]
[352815576,1739343045294,-500.0,0.00014326,2]
[352815577,1739343045303,-500.0,0.00014326,2]
[352815578,1739343045312,-500.0,0.00014327,2]
[352815579,1739343045321,-3490.09,0.00014327,2]
[352815580,1739343045330,-4228.31,0.00014327,2]
[352815581,1739343045339,-509.91,0.00014327,2]
[352815582,1739343045348,-500.0,0.00014327,2]
[352815583,1739343045358,-500.0,0.00014327,2]
[352815584,1739343045367,-500.0,0.00014327,2]
[352815585,1739343045376,-500.0,0.00014328,2]
[352815586,1739343045385,-500.0,0.00014328,2]
[352815587,1739343045395,-303.99661224,0.00014357,2]
[352815588,1739343045404,-217.99375408,0.00014363,2]
[352815589,1739343045414,-885.35,0.00014462,2]
[352815590,1739343045423,-500.0,0.00014462,2]
[352815591,1739343045432,-844.99,0.00014462,2]
[352815592,1739343045442,-500.0,0.00014463,2]
[352815593,1739343045451,-500.0,0.00014463,2]
[352815594,1739343045460,-500.0,0.00014463,2]
[352815595,1739343045469,-3212.95,0.00014463,2]
[352815596,1739343045479,-1024.58,0.00014463,2]
[352815597,1739343045488,-1004.71,0.00014463,2]
[352815598,1739343045497,-999.41,0.00014463,2]
[352815599,1739343045507,-500.0,0.00014463,2]
[352815600,1739343045516,-500.0,0.00014463,2]
[352815601,1739343045525,-9268.96,0.00014463,2]
[352815603,1739343045535,-500.0,0.00014463,2]
[352815604,1739343045546,-509.52,0.00014463,2]
[352815605,1739343045555,-500.0,0.00014463,2]
[352815606,1739343045565,-743.66,0.00014463,2]
[352815607,1739343045574,-2835.54,0.00014463,2]
[352815608,1739343045588,-151.142476,0.00014463,2]
[352815609,1739343045597,-151.0,0.00014463,2]
[352815610,1739343045605,-152.024997,0.00014463,2]
[352815611,1739343045615,-616.77,0.00014463,2]
[352815612,1739343045625,-500.0,0.00014463,2]
[352815613,1739343045634,-500.0,0.00014463,2]
[352815614,1739343045644,-151.0,0.00014463,2]
[352815615,1739343045653,-151.0,0.00014463,2]
[352815616,1739343045663,-500.0,0.00014464,2]
[352815617,1739343045672,-3490.09,0.00014464,2]
[352815619,1739343045682,-4228.31,0.00014464,2]
[352815621,1739343045692,-509.91,0.00014464,2]
[352815622,1739343045701,-539.00626233,0.00014465,2]
[352815623,1739343045710,-313.3501289,0.00014548,2]
[352815624,1739343045719,-306.4532908,0.00014548,2]
[352815625,1739343045729,-155.8142976,0.00014548,2]
[352815626,1739343045738,-428.138784,0.00014548,2]
[352815627,1739343045748,-885.35,0.00014599,2]
[352815628,1739343045757,-500.0,0.00014599,2]
[352815629,1739343045765,-844.99,0.00014599,2]
[352815630,1739343045775,-500.0,0.000146,2]
[352815631,1739343045784,-500.0,0.000146,2]
[352815632,1739343045794,-500.0,0.000146,2]
[352815633,1739343045804,-216.067364,0.000146,2]
[352815634,1739343045813,-3212.95,0.000146,2]
[352815635,1739343045823,-244.17855,0.000146,2]
[352815636,1739343045832,-244.17855,0.000146,2]
[352815637,1739343045841,-1024.58,0.000146,2]
[352815638,1739343045851,-1004.71,0.000146,2]
[352815639,1739343045860,-151.0,0.000146,2]
[352815640,1739343045870,-999.41,0.000146,2]
[352815641,1739343045880,-151.0,0.000146,2]
[352815642,1739343045890,-151.0,0.000146,2]
[352815643,1739343045900,-500.0,0.000146,2]
[352815644,1739343045910,-151.0,0.000146,2]
[352815645,1739343045919,-151.0,0.000146,2]
[352815646,1739343046007,-500.0,0.000146,2]
[352815647,1739343046018,-9268.96,0.000146,2]
[352815648,1739343046029,-151.862795,0.000146,2]
[352815649,1739343046039,-500.0,0.000146,2]
[352815650,1739343046048,-509.52,0.000146,2]
[352815651,1739343046058,-500.0,0.000146,2]
[352815652,1739343046067,-151.0,0.000146,2]
[352815653,1739343046076,-743.66,0.000146,2]
[352815654,1739343046088,-2835.54,0.000146,2]
[352815655,1739343046107,-616.77,0.000146,2]
[352815657,1739343046119,-499.83633535,0.000146,2]
[352815659,1739343046128,-500.0,0.000146,2]
[352815660,1739343046137,-500.0,0.00014601,2]
[352815661,1739343046146,-158.093449,0.00014601,2]
[352815662,1739343046155,-3490.09,0.00014601,2]
[352815663,1739343046165,-4228.31,0.00014601,2]
[352815664,1739343046174,-509.91,0.00014601,2]
[352815665,1739343046184,-151.0,0.00014658,2]
[352815666,1739343046194,-151.0,0.00014658,2]
[352815667,1739343046203,-151.0,0.00014658,2]
[352815668,1739343046212,-162.568969,0.000147,4]
[352815669,1739343046222,-150.0,0.00014712,2]
[352815670,1739343046231,-885.35,0.00014736,2]
[352815671,1739343046240,-500.0,0.00014736,2]
[352815672,1739343046251,-844.99,0.00014736,2]
[352815674,1739343046260,-500.0,0.00014737,2]
[352815675,1739343046269,-500.0,0.00014737,2]
[352815676,1739343046279,-500.0,0.00014737,2]
[352815677,1739343046288,-3212.95,0.00014737,2]
[352815678,1739343046298,-1024.58,0.00014737,2]
[352815679,1739343046307,-1004.71,0.00014737,2]
[352815680,1739343046316,-999.41,0.00014737,2]
[352815681,1739343046326,-500.0,0.00014737,2]
[352815682,1739343046335,-500.0,0.00014737,2]
[352815683,1739343046344,-9268.96,0.00014737,2]
[352815684,1739343046354,-500.0,0.00014737,2]
[352815685,1739343046365,-509.52,0.00014737,2]
[352815686,1739343046380,-500.0,0.00014737,2]
[352815687,1739343046390,-743.66,0.00014737,2]
[352815688,1739343046399,-2835.54,0.00014737,2]
[352815689,1739343046410,-616.77,0.00014737,2]
[352815690,1739343046420,-500.0,0.00014737,2]
[352815691,1739343046429,-500.0,0.00014738,2]
[352815692,1739343046439,-3490.09,0.00014738,2]
[352815693,1739343046448,-4228.31,0.00014738,2]
[352815694,1739343046457,-509.91,0.00014738,2]
[352815695,1739343046467,-9869.22482394,0.00014755,2]
[352815696,1739343046476,-1000.0,0.0001477,2]
[352815697,1739343046485,-514.228614,0.00014779,2]
[352815698,1739343046495,-378.53207376,0.00014779,2]
[352815699,1739343046504,-420.0,0.000148,2]
[352815700,1739343046514,-206.2657545,0.00014849,2]
[352815701,1739343046525,-885.35,0.00014873,2]
[352815702,1739343046537,-500.0,0.00014873,2]
[352815703,1739343046547,-844.99,0.00014873,2]
[352815704,1739343046557,-500.0,0.00014874,2]
[352815705,1739343046566,-500.0,0.00014874,2]
[352815706,1739343046576,-500.0,0.00014874,2]
[352815707,1739343046588,-3212.95,0.00014874,2]
[352815708,1739343046598,-1024.58,0.00014874,2]
[352815709,1739343046608,-1004.71,0.00014874,2]
[352815710,1739343046619,-999.41,0.00014874,2]
[352815711,1739343046628,-500.0,0.00014874,2]
[352815712,1739343046638,-500.0,0.00014874,2]
[352815713,1739343046648,-9268.96,0.00014874,2]
[352815714,1739343046658,-500.0,0.00014874,2]
[352815715,1739343046667,-509.52,0.00014874,2]
[352815716,1739343046677,-500.0,0.00014874,2]
[352815717,1739343046687,-743.66,0.00014874,2]
[352815718,1739343046696,-2835.54,0.00014874,2]
[352815719,1739343046706,-616.77,0.00014874,2]
[352815720,1739343046717,-500.0,0.00014874,2]
[352815721,1739343046728,-152.8351,0.00014875,2]
[352815722,1739343046739,-151.0,0.00014875,2]
[352815723,1739343046749,-151.0,0.00014875,2]
[352815724,1739343046759,-500.0,0.00014875,2]
[352815725,1739343046769,-3490.09,0.00014875,2]
[352815726,1739343046778,-4228.31,0.00014875,2]
[352815727,1739343046788,-509.91,0.00014875,2]
[352815728,1739343046798,-300.0,0.000149,5]
[352815729,1739343046807,-382.3726453,0.00014973,2]
[352815730,1739343046816,-500.0,0.00014973,2]
[352815731,1739343046827,-78661.52243425,0.00015,2]
[352815732,1739343046837,-2835.77534258,0.00015,4]
[352815733,1739343047010,-7243.72313487,0.00015,4]
[352815734,1739343047022,-1192.7264339,0.00015,4]
[352815735,1739343440859,400.0,0.00010685,2]
[352815736,1739343952140,-1391.43406426,0.00012565,2]
[352815737,1739344026097,-450.0,0.00012439,2]
[352815738,1739344029094,-5349.92962658,0.00012,2]
[352815739,1739344031134,-833.79200597,0.00012,2]
[352815740,1739344146168,-300.0,0.00011999,2]
[352815741,1739344146190,-52591.5510645,0.00012,2]
[352815742,1739344147080,-953.56351173,0.00012,2]
[352815743,1739344151087,-142.95337133,0.00012,2]
[352815744,1739344151108,-2273.56382621,0.00012439,2]
[352815745,1739344151130,-103.07260246,0.00012592,2]
[352815746,1739344158096,-94.37085515,0.00012592,2]
[352815747,1739344158119,-238.02488985,0.0001272,2]
[352815748,1739344158141,-191.69692639,0.000129,2]
[352815789,1739344232457,-500.0,0.00011999,2]
[352815791,1739344232467,-500.0,0.00012136,2]
[352815792,1739344232476,-452.57554129,0.0001308,2]
[352815794,1739344232487,-47.42445871,0.0001308,2]
[352815796,1739344232499,-258.38802087,0.00013402,2]
[352815798,1739344232508,-300.0,0.00013403,2]
[352815799,1739344232517,-635.81943593,0.00013404,2]
[352815800,1739344232526,-878.96,0.00013404,2]
[352815801,1739344232535,-345.76971256,0.00013404,2]
[352815806,1739344232575,-154.23028744,0.00013404,2]
[352815808,1739344232585,-500.0,0.00013404,2]
[352815810,1739344232594,-500.0,0.00013404,2]
[352815812,1739344232603,-500.0,0.00013404,2]
[352815815,1739344232613,-500.0,0.00013404,2]
[352815818,1739344232622,-500.0,0.00013404,2]
[352815821,1739344232631,-809.78,0.00013404,2]
[352815824,1739344232641,-500.0,0.00013404,2]
[352815827,1739344232650,-38046.20232325,0.00013405,2]
[352815830,1739344232660,-500.0,0.000135,2]
[352815832,1739344232669,-500.0,0.000135,2]
[352815834,1739344232678,-500.0,0.000135,2]
[352815836,1739344232687,-3244.95,0.000135,2]
[352815838,1739344232697,-442.98640824,0.000135,2]
[352815852,1739344238071,-617.28359176,0.000135,2]
[352815853,1739344238081,-500.0,0.000135,2]
[352815854,1739344238090,-646.080726,0.000135,2]
[352815855,1739344238184,-428.499274,0.000135,2]
[352815856,1739344238194,-500.0,0.000135,2]
[352815857,1739344238204,-500.0,0.000135,2]
[352815858,1739344238214,-500.0,0.000135,2]
[352815859,1739344238223,-500.0,0.000135,2]
[352815860,1739344238232,-500.0,0.000135,2]
[352815861,1739344238242,-515.13,0.000135,2]
[352815863,1739344238253,-500.0,0.000135,2]
[352815865,1739344238262,-749.62,0.000135,2]
[352815867,1739344238272,-500.0,0.000135,2]
[352815869,1739344238281,-3025.9,0.000135,2]
[352815871,1739344238291,-500.0,0.000135,2]
[352815872,1739344238300,-500.0,0.000135,2]
[352815873,1739344238309,-500.0,0.000135,2]
[352815874,1739344238318,-500.0,0.000135,2]
[352815875,1739344238328,-628.25,0.000135,2]
[352815876,1739344238337,-500.0,0.000135,2]
[352815877,1739344238346,-500.0,0.000135,2]
[352815878,1739344238355,-500.0,0.000135,2]
[352815879,1739344238364,-500.0,0.000135,2]
[352815880,1739344238373,-500.0,0.000135,2]
[352815881,1739344238383,-500.0,0.000135,2]
[352815882,1739344238392,-565.85580065,0.000135,2]
[352815883,1739344238402,-500.0,0.000135,2]
[352815884,1739344238411,-500.0,0.000135,2]
[352815885,1739344238420,-500.0,0.000135,2]
[352815886,1739344238430,-500.0,0.000135,2]
[352815887,1739344238440,-500.0,0.000135,2]
[352815888,1739344238449,-500.0,0.000135,2]
[352815889,1739344238458,-500.0,0.000135,2]
[352815890,1739344238467,-500.0,0.000135,2]
[352815891,1739344238476,-500.0,0.000135,2]
[352815892,1739344238486,-500.0,0.000135,2]
[352815893,1739344238495,-500.0,0.000135,2]
[352815894,1739344238506,-500.0,0.000135,2]
[352815895,1739344238515,-500.0,0.000135,2]
[352815896,1739344238525,-500.0,0.000135,2]
[352815897,1739344238535,-278.81721777,0.000135,2]
[352815898,1739344238544,-412.07650583,0.000135,2]
[352815899,1739344238554,-500.0,0.000135,2]
[352815900,1739344238563,-500.0,0.000135,2]
[352815901,1739344238572,-500.0,0.000135,2]
[352815902,1739344238582,-500.0,0.000135,2]
[352815903,1739344238592,-500.0,0.000135,2]
[352815904,1739344238601,-500.0,0.000135,2]
[352815905,1739344238612,-500.0,0.000135,2]
[352815906,1739344238621,-500.0,0.000135,2]
[352815907,1739344238630,-500.0,0.000135,2]
[352815908,1739344238640,-495.90138108,0.000135,2]
[352815909,1739344238649,-500.0,0.000135,2]
[352815910,1739344238659,-500.0,0.000135,2]
[352815911,1739344238668,-500.0,0.000135,2]
[352815912,1739344238678,-500.0,0.000135,2]
[352815913,1739344238687,-500.0,0.000135,2]
[352815914,1739344238707,-500.0,0.000135,2]
[352815915,1739344238721,-500.0,0.000135,2]
[352815916,1739344238731,-500.0,0.00013501,2]
[352815917,1739344238740,-500.0,0.00013501,2]
[352815918,1739344238751,-500.0,0.00013501,2]
[352815919,1739344238760,-500.0,0.00013501,2]
[352815920,1739344238770,-501.3838639,0.00013501,2]
[352815921,1739344238779,-500.0,0.00013501,2]
[352815922,1739344238789,-500.0,0.00013501,2]
[352815923,1739344238799,-635.48991678,0.00013501,2]
[352815924,1739344238809,-504.47182341,0.00013501,2]
[352815925,1739344238819,-500.0,0.00013501,2]
[352815926,1739344238828,-511.32760039,0.00013501,2]
[352815927,1739344238838,-500.0,0.00013501,2]
[352815928,1739344238848,-500.0,0.00013501,2]
[352815929,1739344238858,-500.0,0.00013501,2]
[352815930,1739344238867,-358.92070746,0.00013501,2]
[352815931,1739344238876,-500.0,0.00013501,2]
[352815932,1739344238886,-507.38132305,0.00013501,2]
[352815933,1739344238895,-500.0,0.00013501,2]
[352815934,1739344238905,-500.0,0.00013501,2]
[352815935,1739344238914,-500.0,0.00013501,2]
[352815936,1739344238925,-500.0,0.00013501,2]
[352815937,1739344238936,-500.0,0.00013501,2]
[352815938,1739344238946,-500.28283846,0.00013501,2]
[352815939,1739344238956,-500.0,0.00013501,2]
[352815940,1739344238966,-500.0,0.00013501,2]
[352815941,1739344238975,-500.0,0.00013501,2]
[352815942,1739344238986,-504.14636842,0.00013501,2]
[352815943,1739344238998,-500.0,0.00013501,2]
[352815944,1739344239008,-500.0,0.00013501,2]
[352815945,1739344239018,-500.0,0.00013501,2]
[352815946,1739344239028,-500.0,0.00013501,2]
[352815947,1739344239039,-500.0,0.00013501,2]
[352815948,1739344239049,-500.0,0.00013501,2]
[352815949,1739344239059,-500.0,0.00013501,2]
[352815950,1739344239070,-501.87035438,0.00013501,2]
[352815951,1739344239080,-500.0,0.00013501,2]
[352815952,1739344239090,-500.0,0.00013501,2]
[352815953,1739344239100,-500.0,0.00013501,2]
[352815954,1739344239110,-304.98595452,0.00013501,2]
[352815955,1739344239120,-500.0,0.00013501,2]
[352815956,1739344239130,-500.0,0.00013501,2]
[352815957,1739344239139,-500.46376319,0.00013501,2]
[352815958,1739344239148,-502.86477725,0.00013501,2]
[352815959,1739344239159,-507.08161431,0.00013501,2]
[352815960,1739344239169,-500.0,0.00013501,2]
[352815961,1739344239178,-500.0,0.00013501,2]
[352815962,1739344239187,-579.2424811,0.00013501,2]
[352815963,1739344239197,-500.48068869,0.00013501,2]
[352815964,1739344239208,-500.0,0.00013501,2]
[352815965,1739344239217,-500.0,0.00013501,2]
[352815966,1739344239227,-500.0,0.00013501,2]
[352815967,1739344239237,-500.0,0.00013501,2]
[352815968,1739344239247,-500.0,0.00013501,2]
[352815969,1739344239257,-500.0,0.00013501,2]
[352815970,1739344239267,-500.0,0.00013501,2]
[352815971,1739344239277,-500.0,0.00013501,2]
[352815972,1739344239287,-500.0,0.00013501,2]
[352815973,1739344239296,-500.0,0.00013501,2]
[352815974,1739344239306,-167.33130768,0.00013501,2]
[352815975,1739344239315,-500.0,0.00013501,2]
[352815976,1739344239325,-501.82769055,0.00013501,2]
[352815977,1739344239334,-500.0,0.00013501,2]
[352815978,1739344239344,-502.59886123,0.00013501,2]
[352815979,1739344239354,-481.05243776,0.00013501,2]
[352815980,1739344239364,-500.0,0.00013501,2]
[352815981,1739344239374,-500.0,0.00013501,2]
[352815982,1739344239383,-500.0,0.00013501,2]
[352815983,1739344239393,-500.0,0.00013501,2]
[352815984,1739344239403,-500.0,0.00013501,2]
[352815985,1739344239412,-500.0,0.00013501,2]
[352815986,1739344239422,-322.19477127,0.00013501,2]
[352815987,1739344239431,-500.0,0.00013501,2]
[352815988,1739344239441,-500.0,0.00013501,2]
[352815989,1739344239451,-500.0,0.00013502,2]
[352815990,1739344239461,-501.44539442,0.00013502,2]
[352815991,1739344239471,-500.0,0.00013502,2]
[352815992,1739344239481,-500.0,0.00013502,2]
[352815993,1739344239490,-500.0,0.00013502,2]
[352815994,1739344239498,-500.0,0.00013502,2]
[352815995,1739344239508,-500.0,0.00013502,2]
[352815996,1739344239518,-500.0,0.00013502,2]
[352815997,1739344239527,-500.0,0.00013502,2]
[352815998,1739344239539,-500.0,0.00013502,2]
[352815999,1739344239549,-500.0,0.00013502,2]
[352816000,1739344239559,-500.0,0.00013502,2]
[352816001,1739344239569,-500.0,0.00013502,2]
[352816002,1739344239579,-500.0,0.00013502,2]
[352816003,1739344239588,-500.0,0.00013502,2]
[352816004,1739344239597,-500.0,0.00013502,2]
[352816005,1739344239607,-500.0,0.00013502,2]
[352816006,1739344239617,-500.0,0.00013502,2]
[352816007,1739344239626,-500.0,0.00013502,2]
[352816008,1739344239636,-500.0,0.00013502,2]
[352816009,1739344239647,-500.0,0.00013502,2]
[352816010,1739344239656,-500.0,0.00013502,2]
[352816011,1739344239666,-556.09864368,0.00013502,2]
[352816012,1739344239679,-500.0,0.00013502,2]
[352816013,1739344239689,-500.0,0.00013502,2]
[352816014,1739344239699,-500.0,0.00013502,2]
[352816015,1739344239708,-500.0,0.00013502,2]
[352816016,1739344239718,-500.0,0.00013502,2]
[352816017,1739344239728,-361.54748092,0.00013502,2]
[352816018,1739344239738,-500.0,0.00013502,2]
[352816019,1739344239747,-505.16460125,0.00013502,2]
[352816020,1739344239758,-500.0,0.00013502,2]
[352816021,1739344239767,-500.64571122,0.00013502,2]
[352816022,1739344239777,-500.0,0.00013502,2]
[352816023,1739344239787,-500.0,0.00013502,2]
[352816024,1739344239796,-500.0,0.00013502,2]
[352816025,1739344239806,-224.67021857,0.00013502,2]
[352816026,1739344239815,-500.0,0.00013502,2]
[352816027,1739344239825,-500.0,0.00013502,2]
[352816028,1739344239834,-500.0,0.00013502,2]
[352816029,1739344239844,-528.21099581,0.00013502,2]
[352816030,1739344239854,-500.0,0.00013502,2]
[352816032,1739344239864,-500.0,0.00013502,2]
[352816033,1739344239874,-500.0,0.00013502,2]
[352816035,1739344239884,-500.0,0.00013502,2]
[352816036,1739344239894,-500.0,0.00013502,2]
[352816037,1739344239904,-500.0,0.00013502,2]
[352816038,1739344239914,-500.0,0.00013502,2]
[352816039,1739344239924,-502.00240032,0.00013502,2]
[352816040,1739344239935,-500.0,0.00013502,2]
[352816041,1739344239944,-500.0,0.00013502,2]
[352816042,1739344239954,-500.0,0.00013502,2]
[352816043,1739344239964,-500.0,0.00013502,2]
[352816044,1739344239973,-500.0,0.00013502,2]
[352816045,1739344239983,-500.0,0.00013502,2]
[352816046,1739344239996,-500.0,0.00013502,2]
[352816047,1739344240007,-500.0,0.00013502,2]
[352816049,1739344240017,-501.90806868,0.00013502,2]
[352816050,1739344240029,-505.27644101,0.00013502,2]
[352816051,1739344240039,-500.0,0.00013502,2]
[352816052,1739344240049,-500.0,0.00013502,2]
[352816053,1739344240058,-505.27525607,0.00013502,2]
[352816054,1739344240072,-366.35790411,0.00013502,2]
[352816055,1739344240082,-500.0,0.00013502,2]
[352816056,1739344240092,-500.0,0.00013502,2]
[352816057,1739344240101,-500.0,0.00013502,2]
[352816058,1739344240112,-500.0,0.00013502,2]
[352816059,1739344240121,-500.0,0.00013502,2]
[352816060,1739344240131,-500.0,0.00013502,2]
[352816061,1739344240140,-260.72323367,0.00013502,2]
[352816063,1739344240150,-500.0,0.00013502,2]
[352816064,1739344240160,-500.0,0.00013502,2]
[352816065,1739344240170,-500.0,0.00013502,2]
[352816066,1739344240180,-500.0,0.00013502,2]
[352816067,1739344240190,-362.19803798,0.00013502,2]
[352816068,1739344240199,-570.24769513,0.00013502,2]
[352816069,1739344240209,-500.0,0.00013502,2]
[352816070,1739344240218,-500.0,0.00013502,2]
[352816071,1739344240228,-500.0,0.00013502,2]
[352816072,1739344240237,-500.0,0.00013502,2]
[352816073,1739344240247,-500.0,0.00013502,2]
[352816074,1739344240257,-500.0,0.00013502,2]
[352816075,1739344240267,-500.0,0.00013502,2]
[352816076,1739344240276,-500.0,0.00013502,2]
[352816077,1739344240285,-500.0,0.00013502,2]
[352816078,1739344240294,-500.0,0.00013502,2]
[352816079,1739344240304,-500.0,0.00013502,2]
[352816080,1739344240313,-500.0,0.00013502,2]
[352816081,1739344240323,-500.0,0.00013502,2]
[352816087,1739344240436,-500.0,0.00013502,2]
[352816088,1739344240445,-500.0,0.00013502,2]
[352816089,1739344240455,-500.0,0.00013502,2]
[352816090,1739344240465,-500.0,0.00013502,2]
[352816091,1739344240475,-500.0,0.00013502,2]
[352816092,1739344240484,-500.0,0.00013502,2]
[352816093,1739344240493,-500.0,0.00013502,2]
[352816094,1739344240503,-500.0,0.00013502,2]
[352816095,1739344240513,-500.0,0.00013502,2]
[352816096,1739344240523,-500.0,0.00013502,2]
[352816097,1739344240533,-500.0,0.00013502,2]
[352816098,1739344240543,-471.58546616,0.00013502,2]
[352816099,1739344240553,-500.0,0.00013502,2]
[352816100,1739344240563,-500.58449297,0.00013502,2]
[352816101,1739344240573,-500.0,0.00013502,2]
[352816102,1739344240582,-500.0,0.00013502,2]
[352816103,1739344240592,-500.0,0.00013502,2]
[352816104,1739344240602,-500.0,0.00013502,2]
[352816105,1739344240611,-500.0,0.00013502,2]
[352816106,1739344240620,-500.42946279,0.00013502,2]
[352816107,1739344240630,-500.0,0.00013502,2]
[352816108,1739344240640,-500.0,0.00013502,2]
[352816109,1739344240649,-500.0,0.00013502,2]
[352816110,1739344240659,-500.0,0.00013502,2]
[352816111,1739344240669,-500.0,0.00013502,2]
[352816112,1739344240678,-500.0,0.00013502,2]
[352816113,1739344240688,-500.0,0.00013502,2]
[352816114,1739344240697,-500.0,0.00013502,2]
[352816115,1739344240706,-500.0,0.00013502,2]
[352816116,1739344240716,-500.0,0.00013502,2]
[352816117,1739344240726,-161.17952451,0.00013502,2]
[352816118,1739344240736,-500.0,0.00013502,2]
[352816119,1739344240746,-500.0,0.00013502,2]
[352816120,1739344240756,-500.0,0.00013502,2]
[352816121,1739344240765,-500.0,0.00013502,2]
[352816122,1739344240775,-500.0,0.00013502,2]
[352816123,1739344240784,-303.73947502,0.00013502,2]
[352816124,1739344240794,-3733.21,0.00013502,2]
[352816125,1739344240803,-1029.41,0.00013502,2]
[352816126,1739344240812,-500.0,0.00013502,2]
[352816127,1739344240822,-374.93804142,0.00013502,2]
[352816128,1739344240832,-500.0,0.00013502,2]
[352816129,1739344240841,-453.24179891,0.00013502,2]
[352816130,1739344240997,-48.96449683,0.00013502,2]
[352816131,1739344241009,-500.0,0.00013502,2]
[352816132,1739344241018,-500.0,0.00013502,2]